bitfinex/quotes_ETHUSD_20251125
["timestamp","ask_amount","ask_price","bid_price","bid_amount"]
[1764090133224,4.7921,2930.8,2929.8,0.218]
[1764090133458,0.4853,2930.7,2929.8,0.218]
[1764090134233,0.4853,2930.7,2929.5,6.8271036]
[1764090134458,3.89745604,2930.7,2929.8,0.218]
[1764090134633,0.4853,2930.7,2929.8,0.218]
[1764090134833,0.4853,2930.6,2929.8,0.218]
[1764090135058,0.4853,2930.6,2929.5,6.8271036]
[1764090135561,0.4853,2930.6,2929.5,7.0451036]
[1764090135740,0.4853,2930.6,2929.5,3.4135518]
[1764090136149,0.4853,2930.6,2929.6,0.218]
[1764090136461,0.4853,2930.6,2929.7,6.82663752]
[1764090137650,0.4853,2930.6,2929.8,0.218]
[1764090138164,0.198,2930.9,2929.8,0.218]
[1764090138461,0.4853,2931.4,2929.9,10.23925731]
[1764090138629,0.4853,2931.4,2930.0,1.1652278]
[1764090139056,0.002,2930.6,2930.0,1.1652278]
[1764090139932,0.002,2930.6,2930.0,1.13109811]
[1764090140344,0.002,2930.6,2930.2,0.72559411]
[1764090140545,0.002,2930.6,2930.3,0.218]
[1764090141979,0.002,2930.6,2930.4,0.405504]
[1764090142469,0.002,2930.6,2930.5,4.54348507]
[1764090142998,0.002,2930.6,2930.5,9.54094012]
[1764090144251,0.002,2930.6,2930.5,9.75894012]
[1764090145351,0.002,2930.6,2930.5,10.65712505]
[1764090146072,0.002,2930.9,2930.6,0.405504]
[1764090146276,0.002,2930.9,2930.8,4.54313577]
[1764090148392,0.002,2930.9,2930.8,9.54087762]
[1764090148550,0.002,2930.9,2930.8,8.34313577]
[1764090148751,0.002,2931.2,2931.0,0.405504]
[1764090148949,0.002,2931.2,2931.1,0.94359411]
[1764090149545,0.002,2931.2,2931.1,2.54914227]
[1764090150095,0.002,2931.2,2931.1,1.34909811]
[1764090150396,0.002,2931.2,2931.1,5.74150098]
[1764090150694,0.002,2931.2,2931.1,4.76078655]
[1764090150992,0.002,2931.2,2931.1,5.95950098]
[1764090151149,0.002,2931.2,2931.1,4.76078655]
[1764090151662,0.002,2931.2,2931.1,5.95950098]
[1764090153548,0.91539411,2932.7,2931.2,0.405504]
[1764090153549,0.31747102,2932.0,2931.2,0.405504]
[1764090153750,0.4934,2932.6,2931.7,0.405504]
[1764090153954,0.31751084,2932.5,2931.8,0.217]
[1764090154341,0.4934,2933.8,2932.6,0.405504]
[1764090154626,0.4934,2933.8,2932.6,0.8968633]
[1764090154627,0.31740804,2933.7,2932.6,0.8968633]
[1764090154800,0.4934,2933.8,2932.7,0.405504]
[1764090154801,0.31740804,2933.6,2932.7,0.405504]
[1764090155000,0.31740804,2933.5,2932.7,0.623504]
[1764090155196,0.31740804,2933.4,2932.8,0.218]
[1764090155515,0.31740804,2933.3,2932.8,0.218]
[1764090155829,0.4934,2934.0,2932.8,0.218]
[1764090155830,0.4934,2933.2,2932.8,0.218]
[1764090156396,0.4934,2933.2,2932.9,6.81918918]
[1764090156636,0.4934,2933.5,2932.9,6.81918918]
[1764090156800,0.31685758,2933.4,2932.9,6.81918918]
[1764090156996,4.33183042,2934.1,2932.9,6.81918918]
[1764090156997,0.31685758,2933.3,2932.9,10.22878377]
[1764090157312,0.002,2933.8,2932.9,10.22878377]
[1764090157489,0.81002517,2933.7,2932.9,10.22878377]
[1764090157684,0.31662517,2933.6,2932.9,10.22878377]
[1764090157884,0.31662517,2933.5,2933.0,1.13109811]
[1764090158113,0.002,2933.8,2933.0,1.13109811]
[1764090158362,0.002,2933.8,2933.1,3.4093621]
[1764090158562,0.81176326,2933.8,2933.2,0.217]
[1764090158734,0.4954,2933.8,2933.2,0.217]
[1764090160135,0.002,2933.8,2933.2,0.217]
[1764090160336,0.002,2933.8,2933.4,0.72559411]
[1764090160550,0.002,2933.8,2933.5,7.22329844]
[1764090160738,0.002,2933.8,2933.6,0.217]
[1764090160938,0.002,2933.8,2933.7,0.405504]
[1764090161141,0.002,2933.8,2933.7,5.91017739]
[1764090161453,0.002,2934.1,2933.8,0.72559411]
[1764090162119,0.002,2934.1,2934.0,0.405504]
[1764090162542,0.002,2934.1,2934.0,4.7564144]
[1764090162851,0.002,2934.1,2934.0,4.5394144]
[1764090163068,0.002,2934.1,2934.0,4.7564144]
[1764090165070,0.002,2934.1,2934.0,4.5394144]
[1764090165382,0.002,2934.1,2934.0,4.7564144]
[1764090167156,0.002,2934.1,2933.4,3.40896824]
[1764090167356,0.002,2934.1,2933.5,1.34809811]
[1764090167558,0.002,2934.1,2933.8,1.13109811]
[1764090167790,0.002,2934.1,2934.0,0.405504]
[1764090168365,0.002,2934.1,2933.5,0.405504]
[1764090168566,0.002,2934.1,2933.6,0.217]
[1764090169187,0.002,2934.1,2933.8,1.13109811]
[1764090171183,0.4873,2934.1,2933.9,0.217]
[1764090171392,0.4873,2934.1,2934.0,0.217]
[1764090171393,0.002,2934.1,2934.0,0.217]
[1764090172235,0.5009,2934.1,2934.0,0.217]
[1764090172829,0.002,2934.1,2934.0,0.217]
[1764090173435,0.002,2934.1,2934.0,3.62531629]
[1764090173592,0.5009,2934.1,2934.0,3.62531629]
[1764090173789,0.9862,2934.1,2932.8,0.68003045]
[1764090173991,0.1915,2933.4,2933.1,0.72559411]
[1764090174919,0.4989,2933.2,2932.9,6.81915924]
[1764090175138,0.6768,2933.4,2933.0,0.94259411]
[1764090175336,0.6768,2933.4,2933.1,3.4093621]
[1764090175507,0.6768,2933.4,2933.1,6.8187242]
[1764090175721,0.4853,2933.3,2933.1,6.8187242]
[1764090177019,0.4853,2933.3,2933.2,0.217]
[1764090177436,0.9842,2933.3,2933.2,0.217]
[1764090177649,0.9842,2933.3,2932.7,0.72559411]
[1764090177804,0.4853,2933.2,2933.0,0.217]
[1764090178224,0.4989,2933.1,2933.0,0.217]
[1764090178417,0.1915,2933.4,2933.0,0.217]
[1764090178746,0.4853,2933.3,2933.0,0.217]
[1764090179247,0.4848,2933.3,2933.0,0.217]
[1764090179452,0.4848,2933.3,2933.1,3.4093621]
[1764090179954,0.4848,2933.3,2932.4,0.8968633]
[1764090179955,0.4634,2933.2,2932.4,0.8968633]
[1764090180172,0.4848,2933.3,2932.2,1.19691073]
[1764090180173,0.4634,2933.1,2932.5,7.03711934]
[1764090180455,0.4634,2933.1,2932.5,6.82011934]
[1764090180685,0.6505,2932.6,2932.2,0.8968633]
[1764090180977,0.1871,2932.6,2932.2,0.217]
[1764090181276,3.60054456,2933.4,2932.3,0.405504]
[1764090181277,0.1871,2932.9,2932.3,0.405504]
[1764090181459,0.1871,2932.9,2932.4,6.82035192]
[1764090181765,0.1915,2933.4,2932.5,5.91017739]
[1764090181766,0.6763,2933.4,2932.5,5.91017739]
[1764090182079,0.6763,2933.4,2932.6,0.217]
[1764090182080,0.4848,2933.1,2932.6,0.217]
[1764090182235,0.4634,2932.7,2932.6,0.217]
[1764090182435,0.9482,2932.7,2932.6,0.217]
[1764090182761,0.9482,2932.7,2932.2,3.4103556]
[1764090182945,0.4848,2932.6,2932.3,0.217]
[1764090183150,0.4848,2933.3,2932.3,0.217]
[1764090183331,0.4848,2933.6,2933.1,10.2280863]
[1764090183679,0.4848,2933.6,2933.2,0.217]
[1764090184877,0.4634,2933.3,2933.1,6.8187242]
[1764090185082,0.4848,2933.6,2933.1,3.4093621]
[1764090185377,0.4848,2933.5,2933.1,3.4093621]
[1764090185577,0.4848,2933.9,2932.9,11.35988188]
[1764090185785,0.31804831,2933.8,2933.0,0.217]
[1764090186141,0.4848,2933.7,2932.9,7.95028729]
[1764090186449,0.4848,2933.7,2933.1,0.217]
[1764090186836,0.4848,2933.7,2932.9,11.35988188]
[1764090186837,0.4634,2933.2,2932.9,7.54478329]
[1764090187078,0.4848,2933.7,2933.0,0.217]
[1764090187275,0.4848,2933.6,2933.0,0.217]
[1764090187484,0.4634,2933.1,2933.0,3.62647834]
[1764090187651,0.4634,2933.1,2933.0,0.217]
[1764090187852,0.9482,2933.1,2933.0,0.217]
[1764090188664,0.9482,2933.1,2932.8,3.40965002]
[1764090188859,0.4634,2933.1,2932.8,6.81936087]
[1764090189165,0.9482,2933.1,2932.8,6.81936087]
[1764090189779,0.6505,2932.9,2932.8,3.40965002]
[1764090190295,1.1353,2932.9,2932.8,3.40965002]
[1764090190604,1.1353,2932.9,2932.4,0.8968633]
[1764090190899,0.4634,2932.8,2932.5,0.217]
[1764090191199,0.4848,2932.8,2932.5,0.217]
[1764090191702,0.4848,2932.8,2932.6,3.40994339]
[1764090192004,0.1871,2934.0,2932.7,5.18558328]
[1764090192170,0.1871,2934.0,2933.2,0.405504]
[1764090192360,0.6719,2934.0,2933.3,0.217]
[1764090192803,0.4634,2933.4,2933.0,0.8968633]
[1764090193001,0.4634,2933.1,2932.7,0.94359411]
[1764090193156,7.30397678,2933.8,2932.7,0.94359411]
[1764090193157,0.4848,2933.7,2932.7,0.94359411]
[1764090193490,0.4848,2933.6,2932.7,0.94359411]
[1764090193788,0.4848,2933.6,2932.8,6.8194217]
[1764090193963,0.4848,2933.6,2932.8,3.40971085]
[1764090194305,0.6505,2932.9,2932.7,4.13639738]
[1764090194619,0.4634,2932.8,2932.7,4.13639738]
[1764090195286,0.6719,2932.9,2932.7,4.35339738]
[1764090195479,0.1871,2932.9,2932.7,7.5462245]
[1764090195680,0.1871,2932.9,2932.8,3.62671085]
[1764090195881,0.1871,2933.1,2932.8,7.0364217]
[1764090196082,0.4848,2933.7,2932.8,10.44613255]
[1764090197600,0.4848,2933.7,2932.8,11.34299585]
[1764090197800,0.4848,2933.7,2932.8,7.0364217]
[1764090198010,0.31839072,2933.6,2932.8,7.0364217]
[1764090198486,0.4848,2933.5,2932.8,7.0364217]
[1764090198701,0.6505,2932.9,2932.7,0.8978633]
[1764090198879,0.4634,2932.8,2932.4,0.001]
[1764090199062,0.4634,2932.5,2931.6,1.1138633]
[1764090199261,0.4848,2932.8,2931.3,0.8968633]
[1764090199262,0.4634,2932.0,2931.3,0.8968633]
[1764090199575,0.6505,2931.4,2931.0,0.8968633]
[1764090199785,0.1871,2931.4,2930.9,0.8968633]
[1764090199964,0.6719,2931.4,2930.9,0.8968633]
[1764090200167,0.1871,2931.4,2930.9,6.82382234]
[1764090200387,0.1871,2931.4,2930.9,3.41190109]
[1764090200563,0.4872,2931.3,2930.9,3.41190109]
[1764090201186,0.1871,2931.4,2930.9,6.82382234]
[1764090201390,0.1859,2931.6,2930.9,6.82382234]
[1764090201778,0.1859,2931.6,2930.8,6.82407532]
[1764090201974,0.1859,2931.6,2930.8,10.23611298]
[1764090202378,0.1859,2931.6,2930.8,6.82407532]
[1764090203111,0.6731,2931.6,2930.9,0.405504]
[1764090203883,0.6731,2931.6,2931.0,6.82360968]
[1764090204097,0.6731,2931.6,2931.1,0.217]
[1764090204297,0.4872,2931.5,2931.1,0.217]
[1764090204500,0.1859,2931.6,2931.1,0.217]
[1764090204701,0.1871,2932.0,2931.1,0.217]
[1764090204904,0.6743,2932.0,2931.1,0.217]
[1764090206193,0.6743,2932.0,2931.2,10.23471615]
[1764090206397,0.1871,2932.0,2931.2,6.8231441]
[1764090206610,0.4872,2931.9,2931.2,6.8231441]
[1764090207098,0.4872,2931.9,2931.3,0.217]
[1764090207701,0.4872,2931.9,2931.2,3.41157205]
[1764090207702,0.4923,2931.4,2931.2,3.41157205]
[1764090207901,0.4872,2931.8,2931.3,0.217]
[1764090208076,0.4872,2931.8,2931.4,3.41133929]
[1764090208277,0.4872,2931.8,2931.4,6.82267858]
[1764090209082,0.4872,2931.8,2931.3,0.217]
[1764090209272,0.4923,2931.4,2931.0,0.001]
[1764090209478,0.4923,2931.1,2931.0,0.001]
[1764090209981,0.9795,2931.1,2931.0,0.001]
[1764090212118,5.11678255,2931.1,2931.0,0.001]
[1764090212418,9.025416,2931.0,2930.7,0.001]
[1764090212592,0.6782,2930.8,2930.4,0.001]
[1764090212798,0.4923,2930.5,2930.4,0.001]
[1764090213197,0.9795,2930.5,2930.4,0.001]
[1764090213720,5.17748611,2930.5,2930.4,0.001]
[1764090213912,1.70509411,2930.5,2930.4,0.001]
[1764090214109,8.11223807,2930.5,2930.4,0.001]
[1764090214451,7.45923807,2930.5,2930.4,0.001]
[1764090214806,1.70509411,2930.5,2930.4,0.001]
[1764090216396,5.11748107,2930.5,2930.4,0.001]
[1764090216621,1.70509411,2930.5,2930.4,0.001]
[1764090217918,5.11748107,2930.5,2930.4,0.001]
[1764090218640,0.1859,2930.8,2930.4,0.001]
[1764090218810,0.9795,2930.5,2930.4,0.001]
[1764090219407,0.1859,2930.8,2930.4,0.001]
[1764090219736,0.4923,2930.5,2930.4,0.001]
[1764090220304,0.6731,2930.8,2930.4,0.001]
[1764090220503,0.4923,2930.5,2930.4,0.001]
[1764090220925,0.9795,2930.5,2930.4,0.001]
[1764090221731,0.9795,2930.5,2930.0,0.001]
[1764090221947,0.4923,2930.1,2930.0,0.001]
[1764090222134,0.4923,2930.1,2929.8,0.001]
[1764090222335,0.6782,2929.9,2929.8,0.001]
[1764090222538,1.1654,2929.9,2929.8,0.001]
[1764090223241,0.1859,2930.2,2929.8,0.001]
[1764090223705,0.4872,2930.1,2929.8,0.001]
[1764090224033,0.4923,2929.9,2929.8,0.001]
[1764090224610,0.4872,2930.1,2929.8,0.001]
[1764090225229,0.4923,2929.9,2929.8,0.001]
[1764090225612,0.9795,2929.9,2929.8,0.001]
[1764090227245,4.39258577,2929.9,2929.8,0.001]
[1764090227446,0.9795,2929.9,2929.8,0.001]
[1764090227666,4.39258577,2929.9,2929.8,0.001]
[1764090228135,4.7103063,2929.9,2929.8,0.001]
[1764090228546,1.29722053,2929.9,2929.8,0.001]
[1764090228741,0.9795,2929.9,2929.8,0.001]
[1764090228971,0.6731,2930.2,2929.8,0.001]
[1764090229149,0.317686,2930.1,2929.8,0.001]
[1764090229486,0.1859,2930.2,2929.8,0.001]
[1764090230382,0.4831,2930.5,2929.8,0.001]
[1764090230583,0.53737142,2930.7,2929.8,0.001]
[1764090230584,0.002,2930.7,2929.8,0.001]
[1764090230749,3.89725865,2930.7,2929.8,0.001]
[1764090231075,0.31778623,2930.6,2929.8,0.001]
[1764090231283,0.4715,2929.9,2929.8,0.001]
[1764090231652,0.9546,2929.9,2929.8,0.001]
[1764090231985,1.27252052,2929.9,2929.8,0.001]
[1764090233036,4.68560629,2929.9,2929.8,0.001]
[1764090233249,1.27252052,2929.9,2929.8,0.001]
[1764090233452,11.352137,2929.8,2929.5,0.001]
[1764090233657,0.4715,2929.6,2929.5,0.001]
[1764090233862,0.78942052,2929.6,2929.5,0.001]
[1764090234070,0.31792052,2929.6,2929.5,0.001]
[1764090234258,0.9546,2929.6,2929.5,0.001]
[1764090234782,1.27264126,2929.6,2929.5,0.001]
[1764090235361,4.68607654,2929.6,2929.5,0.001]
[1764090235561,1.27264126,2929.6,2929.5,0.001]
[1764090239158,5.41167065,2929.6,2929.5,0.001]
[1764090242173,0.79624126,2929.6,2929.5,0.001]
[1764090242388,1.28604126,2929.6,2929.5,0.001]
[1764090242891,4.69947654,2929.6,2929.5,0.001]
[1764090243308,4.69947654,2929.6,2928.8,0.4510633]
[1764090243309,0.4782,2929.1,2928.8,0.4510633]
[1764090243530,0.72559411,2928.6,2927.4,1.37241073]
[1764090243666,5.99404726,2928.5,2927.4,0.1755]
[1764090244011,0.31804126,2928.4,2927.4,0.1755]
[1764090244162,0.31804126,2928.3,2927.4,0.1755]
[1764090244360,0.31804126,2928.2,2927.4,7.00747027]
[1764090244610,0.31804126,2928.1,2927.5,0.3509]
[1764090244790,0.1956,2928.9,2927.5,0.3509]
[1764090244991,0.31915144,2928.8,2928.0,0.3509]
[1764090245174,0.31915144,2928.7,2928.0,0.3509]
[1764090245374,0.31915144,2928.6,2928.0,3.76618381]
[1764090245674,0.31915144,2928.5,2928.0,0.3509]
[1764090245876,0.31915144,2928.4,2928.0,0.3509]
[1764090246185,0.72559411,2928.7,2928.0,3.76620024]
[1764090246485,0.31883951,2928.6,2928.0,3.76620024]
[1764090246788,0.31883951,2928.5,2928.0,0.3509]
[1764090246978,0.31883951,2928.4,2928.0,0.3509]
[1764090247183,4.14002001,2928.8,2928.0,3.76615222]
[1764090247384,0.31871998,2928.7,2928.0,3.76615222]
[1764090247584,0.31871998,2928.6,2928.0,3.76615222]
[1764090247798,0.31871998,2928.5,2928.0,3.76615222]
[1764090247965,0.31871998,2928.4,2928.0,0.3509]
[1764090248164,4.14001477,2928.8,2928.0,0.3509]
[1764090248470,0.31862274,2928.7,2928.0,0.3509]
[1764090248675,0.31862274,2928.6,2928.0,3.76618973]
[1764090248873,0.31862274,2928.5,2928.0,0.3509]
[1764090249107,0.31862274,2928.4,2928.0,0.3509]
[1764090249311,0.4898,2928.7,2927.6,0.218]
[1764090249513,3.41471743,2928.5,2927.6,0.218]
[1764090249664,0.31859645,2928.4,2927.6,3.63373792]
[1764090250260,0.72559411,2928.8,2927.6,3.63373792]
[1764090250261,0.72559411,2928.8,2928.3,0.3509]
[1764090250464,0.31856678,2928.7,2928.4,0.3509]
[1764090250664,0.31856678,2928.7,2927.6,3.76663792]
[1764090250875,0.31856678,2928.6,2927.6,7.1824051]
[1764090251076,0.4898,2928.5,2927.6,7.1824051]
[1764090251382,0.1956,2928.9,2928.4,0.3509]
[1764090251577,0.31862224,2928.8,2928.4,0.3509]
[1764090252398,0.31862224,2928.8,2928.4,4.11660557]
[1764090252698,0.1956,2929.2,2928.7,0.3509]
[1764090252868,0.31859659,2929.1,2928.7,0.3509]
[1764090253299,0.31859659,2929.1,2928.7,0.7018]
[1764090253470,0.31859659,2929.0,2928.7,0.3509]
[1764090253670,3.41380981,2929.3,2928.7,0.3509]
[1764090253984,0.31859799,2929.2,2928.7,0.3509]
[1764090255098,0.31859799,2929.2,2928.5,3.41465809]
[1764090255099,0.80839799,2929.2,2928.5,3.41465809]
[1764090255299,0.31859799,2929.1,2928.5,3.41465809]
[1764090255711,0.31859799,2929.1,2928.4,3.76572714]
[1764090256281,3.73265089,2929.1,2928.2,3.63305956]
[1764090256501,0.31859799,2929.0,2928.2,3.63305956]
[1764090256685,0.80839799,2929.0,2928.2,0.218]
[1764090256999,0.1956,2928.9,2928.2,3.63303181]
[1764090257299,3.60957263,2929.2,2928.2,7.39899908]
[1764090257499,0.31879248,2929.1,2928.3,0.3509]
[1764090257703,0.31879248,2929.1,2928.4,3.41483403]
[1764090258207,4.22261172,2929.1,2928.2,3.63302227]
[1764090258510,0.31879248,2929.0,2928.2,0.218]
[1764090258676,3.602287,2928.9,2927.6,3.41576718]
[1764090258876,0.72559411,2928.6,2927.4,0.1755]
[1764090259172,0.31879248,2928.5,2927.4,0.1755]
[1764090259473,0.80859248,2928.4,2927.4,0.1755]
[1764090259696,0.31879248,2928.3,2927.4,3.59149163]
[1764090259875,3.73378503,2928.3,2927.4,3.59149163]
[1764090260076,0.31894696,2928.2,2927.4,3.59149163]
[1764090260384,3.41499255,2928.3,2927.4,3.59149163]
[1764090260702,0.31891805,2928.2,2927.4,0.1755]
[1764090260903,0.79971805,2928.2,2927.4,3.59149068]
[1764090261109,3.41499255,2928.3,2927.4,3.59149068]
[1764090261275,0.31908593,2928.2,2927.4,3.59149068]
[1764090261603,0.31908593,2928.2,2927.5,0.3509]
[1764090261803,0.4808,2928.6,2927.5,0.3509]
[1764090262008,1.04467239,2928.5,2927.5,0.3509]
[1764090262207,0.31907828,2928.4,2927.5,0.3509]
[1764090262507,0.31907828,2928.3,2927.6,0.03415767]
[1764090262696,0.72559411,2928.5,2927.5,0.3509]
[1764090262892,0.31908777,2928.4,2927.5,0.3509]
[1764090263098,0.31908777,2928.3,2927.5,0.3509]
[1764090263296,0.002,2928.8,2927.6,0.623504]
[1764090263496,1.04474162,2928.7,2928.2,0.3509]
[1764090263677,0.31914751,2928.6,2928.2,0.3509]
[1764090263882,0.31914751,2928.5,2928.2,3.76595203]
[1764090264203,0.002,2928.8,2928.2,3.76595203]
[1764090264406,0.002,2928.8,2928.4,0.3509]
[1764090264627,0.32117947,2928.8,2928.7,0.3509]
[1764090264907,0.002,2928.8,2928.2,7.1810193]
[1764090265206,0.002,2928.8,2928.2,6.8301193]
[1764090265408,0.4828,2928.8,2927.9,0.3509]
[1764090265593,3.89726834,2928.8,2927.7,0.218]
[1764090265783,3.89726834,2928.8,2927.4,3.94334969]
[1764090265784,3.41460083,2928.6,2927.4,3.94334969]
[1764090265991,1.0448175,2928.5,2927.4,3.94334969]
[1764090266175,0.31922339,2928.4,2927.4,7.35935023]
[1764090266375,0.80002339,2928.4,2927.4,3.94334969]
[1764090266681,0.31922339,2928.3,2927.4,7.35935023]
[1764090266897,0.80002339,2928.3,2927.4,3.94334969]
[1764090267101,0.31922339,2928.2,2927.4,0.5274]
[1764090267302,0.31922339,2928.2,2927.4,3.94335401]
[1764090267881,3.4151839,2928.1,2927.4,0.1765]
[1764090268488,0.4808,2928.0,2927.4,0.1765]
[1764090268912,0.198,2927.9,2927.4,0.1765]
[1764090269082,0.198,2928.1,2927.4,3.59248183]
[1764090269283,0.31950882,2928.0,2927.4,0.1765]
[1764090269482,0.31950882,2928.0,2927.4,0.001]
[1764090269711,0.4808,2927.9,2927.4,0.001]
[1764090269880,3.73508438,2927.8,2927.4,0.001]
[1764090270084,0.4599,2927.5,2927.4,0.001]
[1764090270283,3.41555836,2927.8,2927.4,0.001]
[1764090270711,0.198,2928.1,2927.4,0.001]
[1764090270931,0.31946434,2928.0,2927.4,0.3519]
[1764090271132,0.31946434,2927.9,2927.4,0.3519]
[1764090271440,0.92359411,2928.2,2927.4,0.3519]
[1764090271729,0.4599,2927.5,2927.4,0.001]
[1764090271912,0.4599,2927.5,2927.1,0.021]
[1764090271913,3.41611724,2927.3,2927.1,0.021]
[1764090272109,1.50497704,2927.2,2927.1,0.021]
[1764090272312,4.15167604,2927.2,2927.1,0.021]
[1764090272929,4.20877704,2927.2,2927.1,0.021]
[1764090273228,5.08852904,2927.2,2927.1,0.021]
[1764090274033,13.50113198,2927.2,2927.1,0.021]
[1764090274534,1.98577704,2927.2,2927.1,0.021]
[1764090274712,0.77938293,2927.2,2927.1,0.021]
[1764090274915,0.31948293,2927.2,2927.1,0.021]
[1764090275120,1.20639411,2927.5,2927.1,0.021]
[1764090275121,0.31948293,2927.4,2927.1,0.021]
[1764090275310,0.31867751,2927.3,2927.1,0.021]
[1764090275510,3.89640283,2927.8,2927.1,0.021]
[1764090275721,0.31865184,2927.7,2927.1,0.021]
[1764090275917,0.31865184,2927.7,2927.1,3.78923347]
[1764090276101,4.14077801,2928.1,2927.1,3.78923347]
[1764090276313,0.4599,2927.2,2927.1,0.021]
[1764090276517,1.18549411,2927.2,2927.1,0.021]
[1764090276708,4.32885362,2927.2,2927.1,0.021]
[1764090277410,1.98489162,2927.2,2927.1,0.021]
[1764090278010,5.40112556,2927.2,2927.1,0.021]
[1764090278206,13.86158456,2927.2,2927.1,0.021]
[1764090278446,8.67593956,2927.2,2927.1,0.021]
[1764090279240,8.69673956,2927.2,2927.1,0.021]
[1764090279649,13.90689097,2927.2,2927.1,0.021]
[1764090279854,14.00689097,2927.2,2927.1,0.021]
[1764090280229,30.0,2927.0,2925.2,0.3519]
[1764090280445,0.72559411,2926.7,2925.3,0.3519]
[1764090280636,0.31859751,2926.6,2925.3,0.3519]
[1764090280834,0.79939751,2926.6,2925.3,0.3519]
[1764090281034,0.31859751,2926.5,2925.3,0.3519]
[1764090281236,0.4808,2926.5,2925.3,0.3519]
[1764090281529,5.69087891,2926.4,2925.3,0.3519]
[1764090281729,0.4808,2926.5,2925.0,0.3519]
[1764090281730,1.04358483,2926.3,2925.0,0.3519]
[1764090282054,0.31800834,2926.2,2925.0,0.3519]
[1764090282354,6.83503638,2926.1,2925.0,3.77067692]
[1764090282554,3.41751819,2926.1,2925.0,3.77067692]
[1764090282855,0.4808,2926.0,2924.6,0.72559411]
[1764090283046,0.4808,2926.0,2924.9,0.3519]
[1764090283246,0.198,2925.9,2924.9,0.3519]
[1764090283557,6.83503638,2926.1,2924.9,0.3519]
[1764090283759,3.41728462,2926.3,2924.9,0.3519]
[1764090283932,0.72559411,2926.2,2924.9,0.3519]
[1764090284264,0.198,2926.9,2925.1,0.72559411]
[1764090284434,0.198,2926.9,2926.1,0.3519]
[1764090284435,3.61459812,2926.9,2926.1,0.3519]
[1764090284634,0.72559411,2926.8,2926.2,0.1765]
[1764090284834,0.4808,2926.7,2925.8,0.1765]
[1764090285151,0.72559411,2926.8,2925.8,0.1765]
[1764090285340,0.4808,2926.7,2925.8,0.1765]
[1764090286347,0.72559411,2926.6,2925.8,0.1765]
[1764090286548,0.72559411,2926.6,2925.8,3.59436861]
[1764090287275,0.6579,2925.9,2924.6,0.1786549]
[1764090287562,0.4599,2925.7,2924.6,0.3519]
[1764090287787,0.9407,2925.7,2924.6,0.3519]
[1764090288135,0.4808,2925.6,2924.3,3.59509549]
[1764090288358,0.4808,2925.6,2924.5,0.3519]
[1764090288552,3.4182191,2925.5,2924.5,0.3519]
[1764090289263,6.8364382,2925.5,2924.5,0.3519]
[1764090289933,7.3172382,2925.5,2924.5,0.3519]
[1764090292567,6.8364382,2925.5,2924.5,0.3519]
[1764090292971,7.3010382,2925.5,2924.5,0.3519]
[1764090293485,7.3010382,2925.5,2924.5,3.77126277]
[1764090293691,7.3010382,2925.5,2924.5,0.3519]
[1764090294390,0.4646,2925.4,2924.5,0.3519]
[1764090294790,0.4646,2925.4,2924.3,3.59511549]
[1764090295001,6.8369056,2925.3,2924.3,3.59511549]
[1764090295155,0.72559411,2925.2,2924.3,0.1755]
[1764090295353,1.19019411,2925.2,2924.4,0.3519]
[1764090295583,0.72559411,2925.2,2924.4,0.3519]
[1764090295961,0.72559411,2925.2,2924.1,0.1755]
[1764090296174,0.72559411,2925.2,2924.2,0.3519]
[1764090296998,0.72559411,2925.0,2924.2,0.3519]
[1764090297154,0.72559411,2925.0,2924.2,3.77162438]
[1764090297480,0.72559411,2925.0,2924.2,0.3519]
[1764090297656,0.72559411,2925.0,2924.2,3.77162214]
[1764090297856,4.14417671,2925.2,2924.3,0.3519]
[1764090298072,3.88287676,2925.5,2924.3,0.3519]
[1764090298261,1.04373263,2925.4,2924.3,0.3519]
[1764090298477,3.41827676,2925.5,2924.3,1.07749411]
[1764090298673,6.83655352,2925.5,2924.3,1.07749411]
[1764090298990,6.83655352,2925.5,2924.5,3.41938792]
[1764090299185,3.40973268,2925.5,2924.5,3.41938792]
[1764090299386,6.82800944,2925.5,2924.6,0.3519]
[1764090299692,7.29260944,2925.5,2924.6,0.3519]
[1764090299862,0.4646,2925.4,2924.4,3.41947085]
[1764090300067,0.4646,2925.4,2924.5,0.3519]
[1764090300293,0.72559411,2925.6,2924.5,0.3519]
[1764090300480,3.88212358,2926.1,2924.6,0.405504]
[1764090300660,0.1869,2925.9,2924.7,0.3519]
[1764090301046,3.92316774,2925.9,2924.8,6.83807438]
[1764090301200,0.31845687,2925.8,2924.8,6.83807438]
[1764090301396,0.78305687,2925.8,2924.9,0.3519]
[1764090301629,0.31845687,2925.7,2924.9,0.3519]
[1764090302513,3.88180695,2926.4,2925.6,0.3519]
[1764090302714,0.31872051,2926.3,2925.9,0.3519]
[1764090303045,4.46160146,2926.3,2925.9,0.3519]
[1764090303214,0.467,2926.0,2925.1,0.218]
[1764090303415,0.97022051,2925.9,2924.7,0.218]
[1764090303632,0.97022051,2925.9,2924.9,0.3519]
[1764090303633,0.1869,2925.9,2924.9,0.3519]
[1764090303833,0.31878639,2926.0,2925.8,0.3519]
[1764090304150,3.88178893,2926.4,2925.8,0.3519]
[1764090304151,0.72559411,2926.4,2925.8,0.3519]
[1764090304299,0.31875075,2926.3,2925.9,0.3519]
[1764090304505,3.61461112,2926.9,2925.9,0.3519]
[1764090304725,0.31876828,2926.8,2926.2,0.3519]
[1764090305137,0.002,2927.1,2926.7,0.3519]
[1764090305423,0.4666,2927.1,2926.0,0.1765]
[1764090305629,0.318827,2927.0,2926.0,3.59412471]
[1764090305829,0.318827,2927.0,2926.0,3.94602471]
[1764090306025,0.6515,2926.9,2926.0,0.1765]
[1764090306230,0.6515,2926.9,2925.3,1.93669871]
[1764090306231,0.467,2926.1,2925.6,0.1765]